bitfinex-derivatives/quotes_SOLF0:USTF0_20250311
["timestamp","ask_amount","ask_price","bid_price","bid_amount"]
[1741654395863,290.5,113.96,113.84,78.27365131]
[1741654396073,290.5,114.0,113.87,78.27365131]
[1741654396466,290.5,114.0,113.87,135.16912805]
[1741654397061,290.5,114.0,113.92,0.05710218]
[1741654397062,78.27365131,113.98,113.92,0.05710218]
[1741654397267,78.27365131,113.95,113.87,135.16912805]
[1741654397465,78.27365131,113.98,113.88,184.3801716]
[1741654397662,292.25438596,114.0,113.88,184.3801716]
[1741654397870,292.25438596,114.0,113.89,49.21104355]
[1741654398070,78.27365131,113.97,113.89,49.21104355]
[1741654398267,1.75453987,113.99,113.91,78.27365131]
[1741654398474,368.55365131,114.08,113.91,78.27365131]
[1741654398782,0.05710218,113.94,113.92,184.4394207]
[1741654398972,78.27365131,114.02,113.92,184.4394207]
[1741654399275,78.27365131,113.99,113.92,184.4394207]
[1741654399473,78.10234477,113.99,113.93,49.21104355]
[1741654399682,291.79423208,114.01,113.93,49.21104355]
[1741654399877,78.27365131,113.97,113.93,49.12854355]
[1741654400070,1.75438596,114.0,113.89,384.31284648]
[1741654400071,78.27365131,113.94,113.89,384.31284648]
[1741654400277,1.75438596,114.0,113.86,343.06891126]
[1741654400278,78.27365131,113.91,113.86,343.06891126]
[1741654400476,78.27365131,113.88,113.85,226.34050566]
[1741654400670,78.27365131,113.88,113.82,98.06041686]
[1741654400873,78.27365131,113.85,113.8,343.06891126]
[1741654401069,290.04,113.9,113.8,343.06891126]
[1741654401277,290.04,113.9,113.84,0.06570935]
[1741654401472,370.95365131,113.9,113.8,343.06891126]
[1741654401677,78.27365131,113.86,113.8,343.06891126]
[1741654401876,78.27365131,113.83,113.7,123.02760887]
[1741654402081,78.27365131,113.8,113.7,123.02760887]
[1741654402286,290.04,113.8,113.73,8.78]
[1741654402484,290.04,113.8,113.7,123.02760887]
[1741654402691,290.04,113.8,113.73,8.78]
[1741654402878,368.29365131,113.88,113.77,8.78]
[1741654403076,1.75608042,113.89,113.84,8.78]
[1741654403291,1.75608042,113.89,113.8,8.78]
[1741654403585,1.75608042,113.89,113.79,8.78]
[1741654403888,1.75608042,113.89,113.78,8.78]
[1741654404284,78.27365131,113.88,113.74,147.63313065]
[1741654404478,78.27365131,113.85,113.74,147.63313065]
[1741654404677,78.27365131,113.85,113.8,0.06752297]
[1741654405177,291.77638886,113.87,113.8,0.06752297]
[1741654405384,1.75654312,113.86,113.8,0.06752297]
[1741654405584,1.75654312,113.86,113.84,8.78]
[1741654405784,290.06,113.94,113.85,8.78]
[1741654405980,290.06,113.94,113.82,0.06527544]
[1741654406294,368.33365131,113.94,113.82,8.78]
[1741654406490,368.33365131,113.94,113.83,8.78]
[1741654406684,290.06,113.94,113.88,8.78]
[1741654406888,290.06,113.94,113.87,8.84566382]
[1741654407087,290.06,113.94,113.76,78.27365131]
[1741654407088,368.33365131,113.94,113.76,78.27365131]
[1741654407290,78.27365131,113.91,113.82,8.78]
[1741654407587,78.27365131,113.91,113.74,147.63313065]
[1741654407784,78.27365131,113.88,113.77,8.78]
[1741654408090,78.27365131,113.91,113.8,343.06891126]
[1741654408293,78.27365131,113.88,113.8,343.06891126]
[1741654408680,290.06,113.87,113.8,343.06891126]
[1741654408879,78.3296772,113.85,113.8,343.06891126]
[1741654409083,1.75685172,113.84,113.74,147.63313065]
[1741654409279,1.75685172,113.84,113.83,289.92206117]
[1741654409491,4.39685172,113.84,113.77,347.9064734]
[1741654409795,78.27365131,113.79,113.58,78.27365131]
[1741654409987,78.27365131,113.75,113.58,78.27365131]
[1741654410189,78.27365131,113.75,113.54,8.4101]
[1741654410494,368.29365131,113.78,113.72,0.05710208]
[1741654410696,1.75793267,113.77,113.6,78.27365131]
[1741654410989,0.06535085,113.73,113.6,78.27365131]
[1741654411192,1.75870559,113.72,113.57,78.27365131]
[1741654411386,1.75870559,113.72,113.63,8.78]
[1741654411692,80.0323569,113.72,113.62,8.78]
[1741654411989,80.0323569,113.72,113.6,8.78]
[1741654412298,78.27365131,113.66,113.51,78.27365131]
[1741654412593,78.27365131,113.66,113.49,95.76464792]
[1741654412594,291.85978882,113.65,113.55,8.78]
[1741654412797,291.85978882,113.65,113.56,8.78]
[1741654412984,291.85978882,113.65,113.57,8.78]
[1741654413189,78.27365131,113.63,113.56,8.78]
[1741654413488,1.76025347,113.62,113.45,90.93865131]
[1741654413694,78.27365131,113.6,113.58,0.0568372]
[1741654413896,78.27365131,113.6,113.43,221.44969597]
[1741654414198,78.27365131,113.57,113.48,8.78]
[1741654414494,78.27365131,113.54,113.46,8.78]
[1741654414890,292.04118351,113.56,113.5,8.78]
[1741654415084,292.04118351,113.56,113.54,8.78]
[1741654415283,290.28,113.56,113.52,8.78]
[1741654415592,290.34435573,113.56,113.51,8.78]
[1741654415790,290.34435573,113.56,113.55,8.78]
[1741654415993,290.34435573,113.56,113.44,228.7126075]
[1741654415994,290.28,113.56,113.54,8.78]
[1741654416191,290.28,113.56,113.53,8.83696698]
[1741654416494,35.10529847,113.54,113.48,78.27365131]
[1741654416702,35.10529847,113.54,113.53,8.81688699]
[1741654416999,18.23212926,113.55,113.54,8.81688699]
[1741654417187,18.23212926,113.55,113.54,8.78]
[1741654417388,20.87212926,113.55,113.44,228.7126075]
[1741654417593,290.28,113.54,113.48,8.78]
[1741654417792,290.28,113.54,113.53,0.05929461]
[1741654418097,290.28,113.54,113.44,228.7126075]
[1741654418393,290.28,113.54,113.53,8.78]
[1741654418595,290.28,113.54,113.51,8.78]
[1741654418797,290.28,113.54,113.49,8.78]
[1741654418996,290.28,113.54,113.52,8.78]
[1741654419196,0.06320062,113.53,113.5,0.06344962]
[1741654419600,0.00390601,113.53,113.52,8.81688699]
[1741654419787,0.00390601,113.53,113.52,8.78]
[1741654420188,0.00390601,113.53,113.52,8.81688699]
[1741654420394,0.00390601,113.53,113.52,8.73150223]
[1741654420593,302.2482433,113.61,113.52,0.03688699]
[1741654420794,302.2482433,113.61,113.58,8.69461524]
[1741654420995,302.2482433,113.61,113.59,8.69461524]
[1741654421195,302.2482433,113.61,113.55,8.69461524]
[1741654421400,75.56524766,113.59,113.49,75.56524766]
[1741654421594,377.81349096,113.61,113.52,0.03688699]
[1741654421795,290.4,113.61,113.58,8.69461524]
[1741654421999,1.33214931,113.63,113.62,8.69461524]
[1741654422395,1.33214931,113.63,113.61,0.05612067]
[1741654422698,1.33214931,113.63,113.62,8.73150223]
[1741654423000,1.33214931,113.63,113.61,75.62136833]
[1741654423001,140.4211939,113.67,113.63,0.03688699]
[1741654423197,292.54415396,113.7,113.66,75.56524766]
[1741654423400,292.54415396,113.7,113.65,0.03688699]
[1741654423597,292.54415396,113.7,113.69,8.69461524]
[1741654423798,292.54415396,113.7,113.67,8.69461524]
[1741654424197,75.56524766,113.68,113.54,88.29054766]
[1741654424498,75.56524766,113.68,113.62,8.69461524]
[1741654424694,75.63181619,113.7,113.65,8.69461524]
[1741654424899,75.56524766,113.72,113.67,8.69461524]
[1741654425101,75.56524766,113.72,113.68,8.69461524]
[1741654425301,0.05983384,113.69,113.56,75.56524766]
[1741654425501,75.56524766,113.68,113.63,8.69461524]
[1741654425701,75.56524766,113.68,113.64,8.69461524]
[1741654426205,77.32395325,113.72,113.67,8.73150223]
[1741654426411,77.32395325,113.72,113.68,8.69461524]
[1741654426612,77.32395325,113.72,113.7,8.69461524]
[1741654426804,1.75870559,113.72,113.71,8.73150223]
[1741654427200,1.82367579,113.72,113.71,8.73150223]
[1741654427403,1.82367579,113.72,113.69,0.06688439]
[1741654427602,1.82367579,113.72,113.71,8.69461524]
[1741654427907,1.82367579,113.72,113.71,8.73150223]
[1741654428305,1.82367579,113.72,113.71,8.69461524]
[1741654428501,1.82367579,113.72,113.69,0.06688439]
[1741654428695,1.82367579,113.72,113.71,8.69461524]
[1741654429297,1.82367579,113.72,113.69,0.06688439]
[1741654429501,1.82367579,113.72,113.7,8.69461524]
[1741654429703,1.82367579,113.72,113.69,0.06688439]
[1741654430008,75.56524766,113.71,113.69,0.06688439]
[1741654430209,1.82367579,113.72,113.69,0.06688439]
[1741654430403,1.82367579,113.72,113.71,8.73150223]
[1741654430603,1.82367579,113.72,113.71,8.69461524]
[1741654430903,1.82367579,113.72,113.69,0.06688439]
[1741654431106,0.0649702,113.72,113.69,0.06688439]
[1741654431410,0.0649702,113.72,113.7,8.69461524]
[1741654431604,0.0649702,113.72,113.71,8.69461524]
[1741654431811,0.0649702,113.72,113.71,8.73150223]
[1741654432104,0.0649702,113.72,113.71,8.69461524]
[1741654432303,0.0649702,113.72,113.69,0.06688439]
[1741654432706,75.56524766,113.71,113.69,0.06688439]
[1741654433115,0.0649702,113.72,113.69,0.06688439]
[1741654433300,75.56524766,113.71,113.69,0.06688439]
[1741654434104,75.56524766,113.71,113.64,8.6921]
[1741654434105,78.20524766,113.71,113.64,8.6921]
[1741654434301,290.4249702,113.72,113.67,8.69461524]
[1741654434507,290.36,113.72,113.67,8.69461524]
[1741654434701,290.36,113.72,113.64,8.6921]
[1741654435011,75.56524766,113.75,113.71,8.69461524]
[1741654435411,0.0580883,113.74,113.72,0.10261588]
[1741654435601,0.0580883,113.74,113.73,8.69461524]
[1741654435805,75.56524766,113.77,113.73,8.73150223]
[1741654436002,75.56524766,113.77,113.74,8.69461524]
[1741654436303,0.0623708,113.75,113.72,0.06646596]
[1741654436508,0.0623708,113.75,113.73,8.69461524]
[1741654436709,365.92524766,113.79,113.74,8.73150223]
[1741654436904,290.36,113.79,113.75,8.69461524]
[1741654437106,75.56524766,113.84,113.78,8.69461524]
[1741654437305,365.92524766,113.86,113.79,8.69461524]
[1741654437508,290.36,113.86,113.8,0.05874646]
[1741654437711,290.36,113.86,113.82,8.73150223]
[1741654437902,290.36,113.86,113.81,0.03688699]
[1741654438103,290.36,113.86,113.83,8.73150223]
[1741654438312,365.92524766,113.86,113.82,8.69461524]
[1741654438717,0.0588104,113.85,113.83,0.06546992]
[1741654439116,75.56524766,113.84,113.73,12.7285]
[1741654439415,75.56524766,113.84,113.83,0.06267567]
[1741654439609,75.56524766,113.84,113.73,12.7285]
[1741654439810,75.56524766,113.82,113.75,8.73150223]
[1741654440112,75.56524766,113.82,113.78,8.69461524]
[1741654440311,75.56524766,113.84,113.81,8.69461524]
[1741654440517,75.56524766,113.84,113.8,8.73150223]
[1741654440816,75.56524766,113.82,113.73,8.4887]
[1741654441018,75.56524766,113.77,113.73,8.4887]
[1741654441314,75.56524766,113.77,113.73,8.69461524]
[1741654441518,75.56524766,113.75,113.67,8.7628]
[1741654441814,75.56524766,113.71,113.66,8.73150223]
[1741654442013,365.74524766,113.77,113.71,8.73150223]
[1741654442211,290.18,113.77,113.7,0.06280603]
[1741654442418,290.18,113.77,113.74,8.73150223]
[1741654442610,0.05741925,113.75,113.7,75.56524766]
[1741654442812,75.56524766,113.83,113.74,8.79693885]
[1741654443010,75.56524766,113.79,113.76,8.69461524]
[1741654443217,75.56524766,113.83,113.78,8.73150223]
[1741654443417,75.56524766,113.83,113.77,8.69461524]
[1741654443618,75.56524766,113.79,113.76,0.03688699]
[1741654443819,75.56524766,113.77,113.66,84.32804766]
[1741654444019,75.56524766,113.81,113.76,8.73150223]
[1741654444211,0.06123133,113.79,113.76,0.0566181]
[1741654444415,75.56524766,113.84,113.77,8.73150223]
[1741654444614,75.56524766,113.8,113.78,0.03688699]
[1741654444813,75.56524766,113.86,113.82,8.73150223]
[1741654445015,75.56524766,113.92,113.88,8.69461524]
[1741654445312,75.56524766,113.96,113.93,0.03688699]
[1741654445519,365.70524766,113.98,113.94,8.73150223]
[1741654445721,365.70524766,113.98,113.93,8.73150223]
[1741654445912,365.70524766,113.98,113.87,4.2336]
[1741654445913,75.56524766,113.96,113.91,8.73150223]
[1741654446113,75.56524766,113.94,113.92,0.03688699]
[1741654446325,365.70524766,113.98,113.95,8.73150223]
[1741654446617,75.56524766,113.96,113.94,0.06725473]
[1741654446915,75.56524766,113.96,113.87,4.2336]
[1741654447125,75.56524766,113.94,113.87,4.2336]
[1741654447319,290.14,113.98,113.93,8.73150223]
[1741654447514,75.56524766,113.94,113.9,8.73150223]
[1741654447722,75.56524766,113.92,113.89,8.73150223]
[1741654448022,75.56524766,113.96,113.89,8.73150223]
[1741654448221,75.56524766,113.96,113.87,4.2336]
[1741654448522,0.067663,113.92,113.81,79.75304766]
[1741654448720,0.067663,113.92,113.83,75.56524766]
[1741654449024,75.56524766,113.96,113.91,8.73150223]
[1741654449227,75.56524766,113.96,113.95,8.69461524]
[1741654449426,75.56524766,113.96,113.94,8.69461524]
[1741654449620,75.56524766,113.96,113.84,7.45034321]
[1741654449815,75.56524766,113.94,113.84,7.45034321]
[1741654450016,75.56524766,113.94,113.82,4.2577]
[1741654450017,75.56524766,113.94,113.9,8.73150223]
[1741654450221,0.05618618,113.91,113.89,0.09849387]
[1741654450419,0.05618618,113.91,113.89,8.79310911]
[1741654450619,75.56524766,113.92,113.89,8.73150223]
[1741654450820,75.56524766,113.9,113.85,7.45034321]
[1741654451018,75.56524766,113.88,113.86,0.03688699]
[1741654451218,75.56524766,113.88,113.82,4.2577]
[1741654451524,75.56524766,113.83,113.72,75.56524766]
[1741654451719,75.56524766,113.83,113.72,84.02974766]
[1741654451924,75.56524766,113.85,113.81,8.73150223]
[1741654452121,75.56524766,113.83,113.78,8.73150223]
[1741654452320,75.56524766,113.81,113.76,0.03688699]
[1741654452521,75.56524766,113.79,113.74,8.73150223]
[1741654452724,75.56524766,113.77,113.73,8.69461524]
[1741654452920,0.05860938,113.82,113.78,0.03688699]
[1741654453127,75.56524766,113.87,113.81,8.73150223]
[1741654453319,75.56524766,113.87,113.84,8.69461524]
[1741654453520,75.56524766,113.87,113.83,8.69461524]
[1741654453719,75.56524766,113.84,113.74,4.0738]
[1741654454021,75.56524766,113.84,113.78,8.73150223]
[1741654454320,75.56524766,113.84,113.8,8.69461524]
[1741654454526,75.56524766,113.84,113.77,8.73150223]
[1741654454720,75.56524766,113.81,113.68,75.56524766]
[1741654454921,75.56524766,113.9,113.73,8.69461524]
[1741654454922,75.56524766,113.78,113.73,8.69461524]
[1741654455120,75.56524766,113.78,113.69,4.0995]
[1741654455121,75.56524766,113.75,113.69,4.0995]
[1741654455323,75.56524766,113.7,113.62,4.4452]
[1741654455621,75.56524766,113.68,113.64,8.73150223]
[1741654455824,75.56524766,113.66,113.63,1.76009856]
[1741654456022,365.52524766,113.68,113.65,0.05932476]
[1741654456221,75.56524766,113.68,113.65,8.79082699]
[1741654456421,75.63158535,113.66,113.59,4.1447]
[1741654456722,75.56524766,113.62,113.56,4.2192]
[1741654456920,75.56524766,113.6,113.56,4.2192]
[1741654457127,75.56524766,113.58,113.52,4.1447]
[1741654457422,290.06,113.63,113.59,8.73150223]
[1741654457622,75.56524766,113.62,113.59,8.69461524]
[1741654457823,290.06,113.63,113.61,0.03688699]
[1741654458015,194.1871,113.79,113.62,8.73150223]
[1741654458016,75.56524766,113.71,113.62,8.73150223]
[1741654458221,1.75901495,113.7,113.69,8.73150223]
[1741654458417,1.75901495,113.7,113.65,0.06387996]
[1741654458620,290.06,113.75,113.69,8.73150223]
[1741654458824,35.64788595,113.73,113.71,8.69461524]
[1741654459022,111.21313361,113.73,113.66,8.73150223]
[1741654459223,75.56524766,113.67,113.63,8.73150223]
[1741654459418,75.56524766,113.67,113.63,8.69461524]
[1741654459620,75.56524766,113.65,113.53,75.56524766]
[1741654459817,75.56524766,113.63,113.58,8.69461524]
[1741654460031,75.56524766,113.59,113.54,8.73150223]
[1741654460328,75.56524766,113.59,113.58,0.06711736]
[1741654460730,75.56524766,113.59,113.51,8.6511]
[1741654460926,75.56524766,113.57,113.52,8.73150223]
[1741654461126,0.05973366,113.6,113.52,8.73150223]
[1741654461127,75.56524766,113.59,113.57,0.06576919]
[1741654461334,75.56524766,113.59,113.52,7.47196362]
[1741654461532,75.56524766,113.55,113.47,4.1614]
[1741654461831,75.56524766,113.53,113.47,8.73150223]
[1741654462027,290.14,113.56,113.45,80.05494766]
[1741654462234,111.21313361,113.63,113.55,8.73150223]
[1741654462436,35.64788595,113.63,113.61,0.03688699]
[1741654462738,35.64788595,113.63,113.62,0.03688699]
[1741654462930,111.27779549,113.63,113.54,4.1549]
[1741654463130,35.71254783,113.63,113.59,0.03688699]
[1741654463325,111.21313361,113.63,113.61,0.06281146]
[1741654463526,35.64788595,113.59,113.58,0.03688699]
[1741654463729,35.64788595,113.59,113.55,4.3449]
[1741654463930,35.64788595,113.59,113.54,4.1549]
[1741654464132,111.21313361,113.59,113.56,7.4786326]
[1741654464333,75.56524766,113.57,113.45,84.06504766]
[1741654464637,75.56524766,113.57,113.54,0.05810656]
[1741654464826,75.56524766,113.59,113.54,0.09499355]
[1741654465026,75.56524766,113.59,113.56,0.03688699]
[1741654465230,34.39872605,113.62,113.57,0.03688699]
[1741654465231,0.05980198,113.58,113.57,0.03688699]
[1741654465636,34.39872605,113.62,113.57,8.73150223]
[1741654465845,109.96397371,113.62,113.58,0.03688699]
[1741654466032,35.64788595,113.65,113.61,8.73150223]
[1741654466337,35.64788595,113.65,113.63,0.03688699]
[1741654466526,35.64788595,113.65,113.6,0.03688699]
[1741654466731,75.56524766,113.64,113.58,0.03688699]
[1741654466933,75.56524766,113.64,113.6,0.03688699]
[1741654467129,35.64788595,113.65,113.6,8.69461524]
[1741654467333,75.56524766,113.64,113.57,8.5708]
[1741654467532,75.56524766,113.62,113.5,75.56524766]
[1741654467728,75.56524766,113.62,113.58,0.03688699]
[1741654467930,75.56524766,113.66,113.6,0.03688699]
[1741654468233,75.56524766,113.66,113.61,0.03688699]
[1741654468433,75.56524766,113.66,113.54,75.56524766]
[1741654468635,75.56524766,113.64,113.59,8.73150223]
[1741654468934,0.05833155,113.61,113.6,8.73150223]
[1741654469140,152.43401744,113.69,113.6,8.73150223]
[1741654469336,76.86876978,113.69,113.58,75.56524766]
[1741654469645,1.75932441,113.68,113.66,8.73150223]
[1741654469938,1.75932441,113.68,113.6,75.56524766]
[1741654469939,1.75932441,113.68,113.67,8.73150223]
[1741654470438,76.92611319,113.69,113.67,8.73150223]
[1741654470634,76.92611319,113.69,113.68,8.73150223]
[1741654470839,74.08227084,113.73,113.68,8.73150223]
[1741654471038,74.08227084,113.73,113.71,0.03688699]
[1741654471338,74.08227084,113.73,113.62,75.56524766]
[1741654471533,74.08227084,113.73,113.69,8.73150223]
[1741654471738,74.08227084,113.73,113.59,8.8045]
[1741654471739,75.56524766,113.72,113.67,8.73150223]
[1741654471934,75.56524766,113.7,113.66,8.73150223]
[1741654472134,75.56524766,113.7,113.68,0.09317773]
[1741654472337,0.06473303,113.71,113.69,0.03688699]
[1741654472543,74.08227084,113.73,113.7,8.73150223]
[1741654472745,74.08227084,113.73,113.71,0.03688699]
[1741654473038,74.14689154,113.73,113.71,0.03688699]
[1741654473240,27.6026062,113.73,113.72,84.29674989]
[1741654473439,83.70604679,113.74,113.73,1.47519603]
[1741654473644,142.50956591,113.76,113.72,78.20524766]
[1741654473845,35.60445187,113.77,113.75,1.47519603]
[1741654474039,35.60445187,113.77,113.73,63.75097364]
[1741654474238,35.60445187,113.77,113.65,124.0]
[1741654474440,35.60445187,113.77,113.69,75.56524766]
[1741654474644,0.06446747,113.72,113.7,0.0609887]
[1741654475044,35.60445187,113.77,113.69,75.56524766]
[1741654475343,35.60445187,113.77,113.75,75.56524766]
[1741654475947,142.50956591,113.79,113.64,384.0]
[1741654475948,365.94524766,113.86,113.73,75.56524766]
[1741654476145,0.05942012,113.77,113.75,0.05559575]
[1741654476338,75.56524766,113.84,113.75,0.05559575]
[1741654476539,75.56524766,113.84,113.74,7.38058038]
[1741654476741,0.05719242,113.77,113.74,7.38058038]
[1741654477134,75.56524766,113.84,113.64,384.0]
[1741654477338,0.05919513,113.77,113.71,75.56524766]
[1741654478050,0.05919513,113.77,113.72,7.38104398]
[1741654478749,0.05919513,113.77,113.73,0.05609898]
[1741654480638,0.05919513,113.77,113.73,75.62134664]
[1741654480848,0.05919513,113.77,113.73,0.05609898]
[1741654482152,0.05919513,113.77,113.67,75.56524766]
[1741654482359,0.05919513,113.77,113.65,75.56524766]
[1741654482651,0.05919513,113.77,113.67,75.56524766]
[1741654482652,365.76524766,113.77,113.67,75.56524766]
[1741654482844,4.2167,113.76,113.69,75.56524766]
[1741654483457,0.05944164,113.74,113.71,0.0660466]
[1741654484254,75.56524766,113.72,113.58,268.56524766]
[1741654484558,4.1853,113.71,113.62,75.56524766]
[1741654484754,4.1853,113.71,113.61,75.56524766]
[1741654484954,4.2167,113.76,113.65,75.56524766]
[1741654485155,75.56524766,113.81,113.69,75.56524766]
[1741654485360,75.56524766,113.77,113.56,193.0]
[1741654485561,0.0577704,113.72,113.66,75.56524766]
[1741654485751,8.349,113.76,113.66,75.56524766]
[1741654486068,75.56524766,113.73,113.61,75.56524766]
[1741654486554,75.56524766,113.71,113.59,75.56524766]
[1741654486759,0.0631452,113.68,113.66,0.05783561]
[1741654487461,4.1637,113.76,113.66,78.26308327]
[1741654487660,4.1637,113.76,113.69,75.56524766]
[1741654487963,4.1637,113.76,113.67,75.56524766]
[1741654488667,0.06561565,113.73,113.7,0.05679427]
[1741654489265,75.56524766,113.73,113.61,75.56524766]
[1741654489459,75.56524766,113.69,113.58,193.0]
[1741654489661,290.22,113.74,113.56,75.56524766]
[1741654489662,75.56524766,113.67,113.56,75.56524766]
[1741654489963,75.56524766,113.67,113.62,7.39312531]
[1741654490164,75.56524766,113.71,113.62,7.39312531]
[1741654490464,1.75886025,113.71,113.6,75.56524766]
[1741654490658,1.75901495,113.7,113.6,75.56524766]
[1741654490864,0.06095528,113.68,113.65,0.05602758]
[1741654491260,0.06095528,113.68,113.65,2.69602758]
[1741654491460,0.06095528,113.68,113.65,0.05602758]
[1741654491861,1.75901495,113.7,113.66,82.96497505]
[1741654492060,1.75901495,113.7,113.66,7.39972739]
[1741654492266,1.69661553,113.7,113.68,75.56524766]
[1741654492458,1.64081553,113.7,113.66,82.96497505]
[1741654492655,1.64081553,113.7,113.69,7.39972739]
[1741654493263,1.64081553,113.7,113.68,0.05980316]
[1741654494672,1.64081553,113.7,113.68,2.69980316]
[1741654495170,0.0601718,113.71,113.68,2.69980316]
[1741654495468,0.0601718,113.71,113.69,83.00574041]
[1741654495856,11.91848644,113.8,113.69,85.64574041]
[1741654496059,11.91848644,113.8,113.72,75.56524766]
[1741654496260,11.91848644,113.8,113.74,75.56524766]
[1741654496462,11.91848644,113.8,113.78,75.56524766]
[1741654496767,142.50956591,113.82,113.78,268.56524766]
[1741654497071,237.51594319,113.84,113.81,75.56524766]
[1741654497272,292.54415396,113.85,113.83,75.56524766]
[1741654497468,292.54415396,113.85,113.82,75.56524766]
[1741654497659,292.60573035,113.85,113.81,75.56524766]
[1741654497862,292.60573035,113.85,113.83,0.05992937]
[1741654498563,292.60573035,113.85,113.83,78.26517703]
[1741654498869,259.60345079,113.85,113.83,271.26517703]
[1741654499070,259.60345079,113.85,113.84,7.44049275]
[1741654499771,0.06157639,113.85,113.84,7.44049275]
[1741654499972,0.06157639,113.85,113.84,10.08049275]
[1741654500269,0.06157639,113.85,113.84,7.44049275]
[1741654500875,0.06157639,113.85,113.84,10.08049275]
[1741654501070,0.06157639,113.85,113.84,7.44049275]
[1741654502166,0.06157639,113.85,113.84,10.08049275]
[1741654502565,75.56524766,113.96,113.84,10.08049275]
[1741654502765,365.56524766,114.0,113.89,75.56524766]
[1741654503069,75.56524766,114.04,113.91,75.56524766]
[1741654503368,75.56524766,114.0,113.89,268.56524766]
[1741654503569,75.56524766,114.02,113.91,75.56524766]
[1741654503774,0.05680103,113.96,113.93,0.06211742]
[1741654504273,75.56524766,114.02,113.94,7.44049275]
[1741654504469,0.06155159,113.96,113.94,7.44049275]
[1741654504877,8.5992,114.06,113.95,83.00574041]
[1741654505081,75.56524766,114.09,113.97,75.56524766]
[1741654505277,75.56524766,114.11,113.99,75.56524766]
[1741654505579,0.06422358,114.02,113.99,75.56524766]
[1741654505766,75.56524766,114.07,113.97,75.56524766]
[1741654505970,75.56524766,114.11,113.99,75.62724792]
[1741654506171,0.06417939,114.02,114.0,7.44049275]
[1741654506473,75.56524766,114.15,114.0,467.00574041]
[1741654506671,75.56524766,114.15,114.03,75.56524766]
[1741654506873,1.75223409,114.14,114.05,75.56524766]
[1741654507071,1.75223409,114.14,114.05,268.56524766]
[1741654507471,1.75223409,114.14,114.07,75.56524766]
[1741654507777,0.06168334,114.11,114.08,0.06227232]
[1741654508172,75.56524766,114.17,114.07,75.56524766]
[1741654508371,289.68,114.26,114.11,75.56524766]
[1741654508670,75.56524766,114.24,114.13,75.56524766]
[1741654508871,75.56524766,114.24,114.11,193.0]
[1741654508872,0.05614046,114.2,114.14,75.56524766]
[1741654509072,0.05614046,114.2,114.16,75.56524766]
[1741654509272,0.05614046,114.2,114.17,0.05868232]
[1741654509670,0.05614046,114.2,114.18,75.56524766]
[1741654509866,1.75085354,114.23,114.18,75.56524766]
[1741654510070,1.75085354,114.23,114.2,75.56524766]
[1741654510278,75.56524766,114.32,114.2,75.56524766]
[1741654510468,1.74947515,114.32,114.27,75.56524766]
[1741654510872,8.7798,114.39,114.29,75.56524766]
[1741654511073,238.3652998,114.46,114.33,75.56524766]
[1741654511276,313.93054746,114.46,114.33,75.56524766]
[1741654511473,238.3652998,114.46,114.38,75.56524766]
[1741654511675,297.95662475,114.48,114.45,75.56524766]
[1741654511875,75.56524766,114.57,114.45,75.56524766]
[1741654512079,75.56524766,114.6,114.48,75.56524766]
[1741654512381,75.56524766,114.57,114.45,75.56524766]
[1741654512579,0.05902634,114.52,114.5,0.0599177]
[1741654512984,75.56524766,114.53,114.41,75.56524766]
[1741654513280,75.56524766,114.53,114.33,768.5034863]
[1741654513281,75.56524766,114.49,114.37,75.56524766]
[1741654513483,75.56524766,114.45,114.34,75.56524766]
[1741654513676,75.56524766,114.45,114.32,75.56524766]
[1741654513876,75.56524766,114.47,114.34,75.56524766]
[1741654514071,75.62386503,114.41,114.3,75.56524766]
[1741654514276,75.62386503,114.41,114.29,75.56524766]
[1741654514482,75.56524766,114.39,114.27,75.56524766]
[1741654514672,1.74855744,114.38,114.27,75.56524766]
[1741654514871,1.74855744,114.38,114.31,75.56524766]
[1741654515382,1.74855744,114.38,114.37,296.74406381]
[1741654515575,75.56524766,114.39,114.37,283.22916381]
[1741654515773,309.85363066,114.41,114.37,187.6405132]
[1741654515975,75.56524766,114.39,114.37,187.6405132]
[1741654516179,0.06368722,114.39,114.37,187.70189964]
[1741654516379,75.62893488,114.39,114.37,0.06138644]
[1741654516579,112.27950971,114.41,114.37,0.06138644]
[1741654516981,4.2114,114.48,114.37,0.06138644]
[1741654517177,364.50524766,114.53,114.4,75.56524766]
[1741654517382,75.56524766,114.51,114.4,75.56524766]
[1741654517579,288.94,114.53,114.4,75.56524766]
[1741654517580,364.50524766,114.53,114.4,75.56524766]
[1741654517879,0.06454875,114.47,114.44,0.05902164]
[1741654518277,75.56524766,114.47,114.34,75.56524766]
[1741654518578,0.05548567,114.47,114.2,191.0]
[1741654518784,26.72,114.46,114.16,193.87685704]
[1741654518980,26.72,114.44,114.16,193.87685704]
[1741654519285,26.72,114.44,114.16,193.0]
[1741654519682,75.56524766,114.3,114.18,75.56524766]
[1741654519884,364.36524766,114.3,114.29,0.05512074]